[Event "Karnataka State Open-ch 2018"]
[Site "Bengaluru"]
[Date "2018.04.17"]
[Round "8"]
[White "Arvind, Ramnath Iyer"]
[Black "Hardik, Jha"]
[Result "1/2-1/2"]
[ECO "B01"]
[WhiteElo "1519"]
[BlackElo "1882"]
[Annotator "NA"]
[PlyCount "157"]
[EventDate "2018.??.??"]
[EventType "swiss"]
[EventCountry "IND"]
[SourceTitle "playchess.com"]
[Source "ChessBase"]
[SourceQuality "1"]
[TimeControl "5400+30"]

{[%evp 8,157,50,47,89,46,51,51,35,28,41,33,35,32767,32767,32767,32767,5,26,0,15,0,4,32767,11,14,32767,32767,32767,32767,13,7,15,5,16,32767,0,-4,0,0,0,0,0,10,0,0,37,-22,-18,-21,-18,-14,-24,-25,-31,-23,-1,0,-7,-14,0,-16,-14,-12,15,-29,-48,-40,-41,-40,-32,-25,-18,-161,-17,-209,0,-7,0,0,0,-10,-10,-11,0,-2,-3,0,0,0,0,-37,-18,-29,-10,-8,0,-174,-63,-12840,-330,-210,-12841,-12845,-311,-280,-12847,-330,-535,-352,-12851,-12851,32767,32767,32767,32767,-1198,-1285,-387,-560,-12851,-451,-12851,-12851,0,-12851,-12851,-1108,-527,-329,-564,-457,-158,-153,32767,32767,32767,32767,32767,32767,32767,32767,32767,32767,-8,-29,-50,-29,-9,-43,0,0]} 1. e4 {[%emt 0:00:00]} d5 {[%emt 0:00:38]} 2. exd5 {[%emt 0:00:00]} Qxd5 {[%emt 0:00:03]} 3. Nc3 {[%emt 0:00:00]} Qa5 {[%emt 0:00:08]} 4. d4 {[%emt 0:00:00]} Nf6 {[%emt 0:02:12]} 5. Nf3 {[%emt 0:01:03]} Bg4 {[%emt 0:01:24]} 6. Be2 {[%emt 0:01:04]} c6 {[%emt 0:01:51]} 7. h3 {[%emt 0:03:49] B01: Scandinavian Defence} Bh5 {[%emt 0:00:41]} (7... Bxf3 8. Bxf3 e6 9. O-O Be7 10. Ne4 Nbd7 11. c3 O-O 12. Bf4 Nxe4 13. Bxe4 g6 14. Re1 Rfe8 15. a4 Bf8 16. b4 Qd8 17. b5 {½-½ (33) Mezentsev,V (2493)-De Guzman,R (2521) Reno 2004}) 8. O-O {[%emt 0:01:15]} e6 {[%emt 0:00:43]} 9. Bf4 {[%emt 0:00:57] LiveBook: 3 Games} Nbd7 {[%emt 0:01:30]} 10. Ne5 {[%emt 0:01:20]} Bxe2 {[%emt 0:00:13]} 11. Qxe2 {[%emt 0:00:02]} Be7 {[%emt 0:02:05]} 12. Rfe1 {[%emt 0:03:06]} O-O {[%emt 0:01:28]} 13. Rad1 {[%emt 0:04:45]} Rad8 $146 {[%emt 0:01:13]} ({Find the theoretical novelty and annotate with similar games:} 13... Nxe5 14. Bxe5 {½-½ (30) Teshima,R (1974)-Zampronha,W (2126) Florianopolis 2018}) 14. Nc4 {[%emt 0:02:47]} Qa6 {[%emt 0:04:42]} 15. Bc7 {[%emt 0:07:54]} Rc8 {[%emt 0:00:54]} 16. Bd6 {[%emt 0:01:04]} Bxd6 {[%emt 0:01:42]} 17. Nxd6 {[%emt 0:00:11]} Qxe2 {[%emt 0:00:08]} 18. Rxe2 {[%emt 0:00:18]} Rc7 {[%emt 0:00:58]} 19. Nce4 {[%emt 0:03:11]} Nxe4 {[%emt 0:01:40]} 20. Nxe4 {[%emt 0:00:03]} Rd8 {[%emt 0:00:46]} 21. Red2 {[%emt 0:04:10]} Nf6 {[%emt 0:01:47]} 22. Nxf6+ {[%emt 0:01:38]} gxf6 {[%emt 0:00:02]} 23. Kf1 {[%emt 0:00:01]} Rcd7 {[%emt 0:00:42]} 24. Ke2 {[%emt 0:03:34]} Rd5 {[%emt 0:01:55]} 25. c4 {[%emt 0:08:08]} R5d7 {[%emt 0:01:00]} 26. Ke3 {[%emt 0:07:08]} f5 {[%emt 0:02:01]} 27. f4 {[%emt 0:02:36]} ({White should try} 27. g4 $14) 27... h5 {[%emt 0:01:01]} 28. g3 {[%emt 0:03:04]} Kg7 {[%emt 0:00:11]} 29. h4 {[%emt 0:01:21]} Kf6 {[%emt 0:00:23]} 30. Ke2 {[%emt 0:03:06]} Ke7 31. c5 f6 {[%emt 0:04:57]} 32. Ke3 {[%emt 0:03:37]} Rg8 {[%emt 0:01:04]} 33. Kf2 {[%emt 0:02:41]} Rgd8 {[%emt 0:02:26]} 34. Ke3 {[%emt 0:00:12]} Rd5 {[%emt 0:00:06]} 35. b4 {[%emt 0:01:14]} a5 {[%emt 0:09:12]} 36. a3 {[%emt 0:01:10]} Ra8 {[%emt 0:01:01]} 37. Rd3 {[%emt 0:02:01]} axb4 {[%emt 0:00:15]} 38. axb4 {[%emt 0:00:01]} Ra4 {[%emt 0:01:29]} 39. Rb1 {[%emt 0:02:59]} e5 {[%emt 0:01:52]} 40. Rbb3 {[%emt 0:02:59]} (40. dxe5 $15 Rxd3+ 41. Kxd3) 40... Ke6 $2 {[%emt 0:02:08]} (40... e4 $19 41. Rd2 Rd8) 41. Rd2 $2 {[%emt 0:02:28] [#]} (41. fxe5 $11 fxe5 42. dxe5) 41... Ra1 $2 {[%emt 0:00:35]} (41... e4 $1 $19 42. b5 Rd8) 42. dxe5 $1 {[%emt 0:03:50]} Rxd2 {[%emt 0:01:43]} 43. Kxd2 {[%emt 0:00:17]} fxe5 {[%emt 0:00:06]} 44. Rd3 {[%emt 0:02:12]} exf4 {[%emt 0:00:40]} 45. gxf4 {[%emt 0:01:17]} Rh1 {[%emt 0:00:30]} 46. Rd6+ {[%emt 0:00:59]} Ke7 {[%emt 0:00:03]} 47. Rh6 {[%emt 0:00:48]} Rxh4 {[%emt 0:00:04]} 48. Ke3 {[%emt 0:00:31]} Rh3+ {[%emt 0:00:38]} 49. Ke2 {[%emt 0:00:42]} h4 {[%emt 0:00:39]} 50. Rh7+ {[%emt 0:00:49]} Ke6 {[%emt 0:00:01]} 51. Rxb7 {[%emt 0:00:27]} Rb3 {[%emt 0:00:29]} 52. Rh7 $2 {[%emt 0:00:49]} (52. Kf2 $11 {and White is okay.}) 52... Kd5 {[%emt 0:00:25]} 53. Rxh4 $2 {[%emt 0:00:53]} (53. Rd7+ $11 Ke4 54. Re7+ Kxf4 55. Rh7) 53... Rxb4 {[%emt 0:00:02]} 54. Kf3 {[%emt 0:01:13]} Rb3+ {[%emt 0:00:17]} 55. Kf2 {[%emt 0:00:19] [#]} Rc3 $1 {[%emt 0:00:34]} ({Inferior is} 55... Kxc5 56. Rh5 $15) 56. Rh5 {[%emt 0:01:15]} Ke4 {[%emt 0:00:09]} 57. Rh4 {[%emt 0:04:54]} Rxc5 {[%emt 0:00:15]} 58. Rh8 {[%emt 0:00:28]} Kxf4 {[%emt 0:00:47]} 59. Rh4+ {[%emt 0:00:14]} Ke5 {[%emt 0:00:28]} 60. Kf3 {[%emt 0:00:09]} Rc3+ {[%emt 0:00:07]} 61. Kf2 {[%emt 0:00:11]} c5 {[%emt 0:00:26]} 62. Ke2 {[%emt 0:00:23]} Ra3 $2 {[%emt 0:07:33]} (62... f4 63. Kd2 Rb3 64. Rh5+ Kd4) 63. Rc4 {[%emt 0:00:51]} Ra5 {[%emt 0:00:07]} 64. Kf3 {[%emt 0:00:37]} Rb5 {[%emt 0:00:49]} 65. Ke3 {[%emt 0:01:28]} Ra5 $2 {[%emt 0:05:59]} (65... Rb3+ $19 66. Ke2 Rb5) 66. Kf3 {[%emt 0:00:09]} Ke6 {[%emt 0:01:54]} 67. Kg3 {[%emt 0:02:07]} Rb5 {[%emt 0:00:49]} 68. Kf3 {[%emt 0:00:33]} Kf6 {[%emt 0:00:20]} 69. Kf2 $2 {[%emt 0:00:29] [#]} (69. Ke2 $17) 69... Kg5 $2 {[%emt 0:00:11]} (69... Ke7 $1 $19 {[%cal Re7d6] and Black stays clearly on top.} 70. Ke3 Kd6) 70. Kg3 {[%emt 0:00:13]} Rb3+ {[%emt 0:00:39]} 71. Kg2 {[%emt 0:00:52]} f4 {[%emt 0:00:11]} 72. Rxc5+ {[%emt 0:00:12]} Kg4 {[%emt 0:00:03]} 73. Rc2 {[%emt 0:00:11]} Rg3+ {[%emt 0:00:40]} 74. Kh2 {[%emt 0:00:24]} Rh3+ {[%emt 0:00:22]} 75. Kg1 {[%emt 0:01:20]} Rh8 {[%emt 0:03:45]} 76. Rc3 {[%emt 0:02:18]} Ra8 {[%emt 0:02:01]} 77. Kg2 {[%emt 0:02:18]} Ra2+ {[%emt 0:00:23]} 78. Kg1 {[%emt 0:00:02]} f3 $11 {[%emt 0:01:29]} 79. Rc8 1/2-1/2

[Event "Karnataka State Open-ch 2018"]
[Site "Bengaluru"]
[Date "2018.04.17"]
[Round "8"]
[White "Kalki Eshwar D"]
[Black "Sridharan Ramanathan"]
[Result "1-0"]
[ECO "B23"]
[WhiteElo "1515"]
[BlackElo "1997"]
[Annotator "NA RC"]
[PlyCount "63"]
[EventDate "2018.??.??"]
[EventType "swiss"]
[EventCountry "IND"]
[SourceTitle "playchess.com"]
[Source "ChessBase"]
[SourceQuality "1"]
[TimeControl "5400+30"]

{[%evp 8,62,11,6,40,43,33,44,46,33,36,56,80,87,154,146,131,132,32767,32767,32767,160,32767,32767,198,158,334,350,32767,32767,470,475,493,528,534,370,470,517,800,32767,502,528,569,570,541,535,576,589,576,570,593,562,534,626,29998,29999,29999]} 1. e4 {[%emt 0:00:00]} c5 {[%emt 0:00:14]} 2. Nc3 {[%emt 0:00:00]} d6 {[%emt 0:00:15]} 3. f4 {[%emt 0:00:00]} Nc6 {[%emt 0:00:50]} 4. Bb5 {[%emt 0:00:00]} Bd7 {[%emt 0:00:21]} 5. Nf3 {[%emt 0:00:05] LiveBook: 73 Games B23: Closed Sicilian: Lines without g3} Nd4 {[%emt 0:08:22]} (5... e6 6. O-O Be7 7. d4 cxd4 8. Nxd4 Nf6 9. Bxc6 Bxc6 10. Qd3 O-O 11. Kh1 Rc8 12. Bd2 Qb6 13. a4 Rfd8 14. Be3 Qa5 {½-½ (34) Predke,A (2595)-Demchenko,A (2672) Batumi 2018}) 6. Bxd7+ {[%emt 0:01:52]} Qxd7 {[%emt 0:00:08]} 7. Nxd4 {[%emt 0:00:26]} cxd4 {[%emt 0:00:13]} 8. Ne2 $1 {[%emt 0:00:14]} e5 {[%emt 0:00:58]} 9. O-O {[%emt 0:00:56]} h5 $146 {[%emt 0:07:12]} ({Predecessor:} 9... Nf6 10. d3 Be7 11. Ng3 O-O-O 12. Nf5 {1-0 (53) Gerbelli Neto,E (2169)-Marques de Oliveira,E (2052) Sao Paulo 2006}) 10. d3 {[%emt 0:01:06]} f6 {[%emt 0:02:16]} (10... Nf6 $14) 11. c3 {[%emt 0:00:46]} dxc3 12. Nxc3 O-O-O {[%emt 0:14:53]} 13. Be3 {[%emt 0:01:10]} Kb8 {[%emt 0:03:35]} 14. Rc1 {[%emt 0:00:41]} exf4 {[%emt 0:01:20]} 15. Bxf4 {[%emt 0:00:52]} Ne7 {[%emt 0:03:48]} 16. Qb3 {[%emt 0:02:10]} g5 {[%emt 0:02:25]} (16... h4 $142 17. Be3 Rh5) 17. Be3 {[%emt 0:00:23]} Bg7 {[%emt 0:03:37]} 18. Nb5 {[%emt 0:02:10]} Nc6 {[%emt 0:01:37] [#]} 19. Rxc6 $1 {[%emt 0:03:55]} bxc6 {[%emt 0:08:09]} 20. Nxa7+ {[%emt 0:01:42]} ({Not} 20. Nxd6+ Ka8 $16) 20... Ka8 {[%emt 0:00:09]} 21. Qa3 {[%emt 0:01:33]} Kb7 {[%emt 0:06:56]} 22. Qb4+ {[%emt 0:05:42]} (22. Rc1 $142 c5 23. Rc3) 22... Ka8 {[%emt 0:00:19] [#]} 23. Nxc6 $1 {[%emt 0:09:56]} Qxc6 {[%emt 0:07:17]} 24. Qa5+ {[%emt 0:00:24]} Kb7 {[%emt 0:00:31]} 25. Qa7+ {[%emt 0:00:09]} Kc8 {[%emt 0:00:07]} 26. Rc1 {[%emt 0:00:16]} Qxc1+ {[%emt 0:00:22]} 27. Bxc1 {[%emt 0:00:04]} Rd7 {[%emt 0:00:26]} 28. Qa8+ {[%emt 0:00:52]} Kc7 {[%emt 0:00:07]} 29. Qa5+ {[%emt 0:00:11]} Kc8 {[%emt 0:01:25]} 30. Bd2 {[%emt 0:02:47]} Rhd8 {[%emt 0:00:46]} 31. Qa8+ {[%emt 0:00:13]} Kc7 {[%emt 0:00:13]} 32. Ba5# {[%emt 0:00:05] Re8 Bd2 Kc8 Qa5 Rg8 Qf5 Rc7 Ba5+ Kb7 Qd7} 1-0

[Event "Karnataka State Open-ch 2018"]
[Site "Bengaluru"]
[Date "2018.04.18"]
[Round "9"]
[White "Raducanu, Andrei-Augustin"]
[Black "Sushrutha, Reddy"]
[Result "1-0"]
[ECO "C01"]
[WhiteElo "2063"]
[BlackElo "1583"]
[Annotator "NA RC"]
[PlyCount "63"]
[EventDate "2018.??.??"]
[EventType "swiss"]
[EventCountry "IND"]
[SourceTitle "playchess.com"]
[Source "ChessBase"]
[SourceQuality "1"]
[TimeControl "5400+30"]

1. e4 {[%emt 0:00:00]} e6 {[%emt 0:02:58]} 2. d4 {[%emt 0:00:00]} d5 {[%emt 0:00:05]} 3. exd5 {[%emt 0:00:00]} exd5 {[%emt 0:00:10]} 4. Bd3 {[%emt 0:00:00]} Nf6 {[%emt 0:00:16]} 5. Nf3 {[%emt 0:00:00]} Bd6 {[%emt 0:00:10]} 6. O-O {[%emt 0:00:14]} O-O {[%emt 0:00:03]} 7. b3 {[%emt 0:01:53]} Bg4 {[%emt 0:00:20]} 8. c4 {[%emt 0:02:44]} c6 {[%emt 0:00:24]} 9. h3 {[%emt 0:00:47]} Bh5 {[%emt 0:00:13]} 10. Bg5 {[%emt 0:00:05]} Nbd7 {[%emt 0:00:54]} 11. g4 {[%emt 0:07:12]} Bg6 {[%emt 0:00:10]} 12. c5 {[%emt 0:06:26]} Bc7 {[%emt 0:00:48]} 13. Nc3 {[%emt 0:00:45]} Bxd3 {[%emt 0:00:21]} 14. Qxd3 {[%emt 0:00:03]} h6 {[%emt 0:00:25]} 15. Bd2 {[%emt 0:01:17]} Re8 {[%emt 0:00:17]} 16. Rae1 {[%emt 0:00:47]} Nf8 {[%emt 0:00:34]} 17. Rxe8 {[%emt 0:01:47]} Qxe8 {[%emt 0:00:18]} 18. Re1 {[%emt 0:00:13]} Qd7 {[%emt 0:00:44]} 19. Ne5 {[%emt 0:00:45]} Qc8 {[%emt 0:03:40]} 20. f4 {[%emt 0:03:02]} N8d7 {[%emt 0:00:55]} 21. b4 {[%emt 0:06:03]} Nxe5 {[%emt 0:01:45]} 22. dxe5 {[%emt 0:00:38]} Nh7 {[%emt 0:01:36]} 23. Ne2 {[%emt 0:02:43]} Qf8 {[%emt 0:01:50]} 24. Nd4 {[%emt 0:08:23]} g6 {[%emt 0:00:36]} 25. f5 {[%emt 0:03:56]} g5 {[%emt 0:02:01]} 26. f6 {[%emt 0:02:04]} Re8 {[%emt 0:00:07]} 27. Qf5 {[%emt 0:00:23]} Kh8 {[%emt 0:00:40]} 28. e6 {[%emt 0:02:36]} fxe6 {[%emt 0:00:52]} 29. Nxe6 {[%emt 0:00:56]} Qf7 {[%emt 0:00:29]} 30. Nxc7 {[%emt 0:01:24]} Rxe1+ {[%emt 0:00:57]} 31. Bxe1 {[%emt 0:00:02]} Qxc7 {[%emt 0:00:03]} 32. Qe6 {[%emt 0:03:54]} 1-0

[Event "Karnataka State Open-ch 2018"]
[Site "Bengaluru"]
[Date "2018.04.18"]
[Round "9"]
[White "Sekhawat, Hussen"]
[Black "Arvind, Ramnath Iyer"]
[Result "0-1"]
[ECO "A05"]
[WhiteElo "1915"]
[BlackElo "1519"]
[Annotator "NA"]
[PlyCount "88"]
[EventDate "2018.??.??"]
[EventType "swiss"]
[EventCountry "IND"]
[SourceTitle "playchess.com"]
[Source "ChessBase"]
[SourceQuality "1"]
[TimeControl "5400+30"]

1. Nf3 {[%emt 0:00:00]} Nf6 {[%emt 0:00:05]} 2. g3 {[%emt 0:00:00]} g6 {[%emt 0:00:01]} 3. b3 {[%emt 0:00:11]} Bg7 {[%emt 0:00:05]} 4. Bb2 {[%emt 0:00:10]} c5 {[%emt 0:00:04]} 5. Bg2 {[%emt 0:00:55] A05: Réti Opening: 1 Nf3 Nf6} d6 {[%emt 0:00:37]} 6. O-O {[%emt 0:01:53]} e5 {[%emt 0:01:15]} 7. e3 {[%emt 0:01:47]} Nc6 {[%emt 0:02:09]} 8. c4 {[%emt 0:05:36]} O-O {[%emt 0:04:45]} 9. d3 {[%emt 0:09:11]} (9. d4 cxd4 10. exd4 Bg4 11. h3 Bxf3 12. Bxf3 exd4 13. Bxc6 bxc6 14. Bxd4 {0-1 (31) Inarkiev,E (2689)-Li,C (2732) Riadh 2017}) 9... h6 {[%emt 0:05:39]} 10. Nc3 {[%emt 0:04:29]} Be6 {[%emt 0:06:05]} 11. Rc1 {[%emt 0:09:45]} Qd7 {[%emt 0:02:50]} 12. Ne4 $146 {[%emt 0:05:51]} ({Predecessor:} 12. Re1 Ne8 13. a3 Nc7 14. Nd2 Rab8 15. Nd5 Bg4 16. Qc2 Nxd5 17. cxd5 {1-0 (47) Simic,R (2460)-Vujakovic,B (2400) Zlatibor 1989}) 12... Rad8 {[%emt 0:02:41]} 13. Qd2 {[%emt 0:02:30]} Bh3 {[%emt 0:04:21]} 14. a3 {[%emt 0:02:53]} Bxg2 {[%emt 0:02:05]} 15. Kxg2 {[%emt 0:00:02]} Nh5 {[%emt 0:03:51]} 16. Nc3 {[%emt 0:11:23]} f5 {[%emt 0:05:21]} 17. h3 f4 18. Qe2 {[%emt 0:14:35]} Qf7 {[%emt 0:14:44]} 19. Ne4 {[%emt 0:03:37]} g5 {[%emt 0:04:09]} 20. g4 {[%emt 0:00:30]} Nf6 {[%emt 0:00:40]} 21. Rg1 {[%emt 0:05:26]} Qd7 {[%emt 0:06:08]} 22. Nxf6+ {[%emt 0:02:14]} Rxf6 {[%emt 0:01:07]} 23. e4 {[%emt 0:00:27]} h5 {[%emt 0:04:59]} 24. Kf1 {[%emt 0:00:54]} Bh6 {[%emt 0:00:49]} 25. Ke1 {[%emt 0:02:22]} h4 {[%emt 0:02:38]} 26. Nxh4 {[%emt 0:03:40]} gxh4 {[%emt 0:00:11]} 27. g5 {[%emt 0:00:07]} Rg6 {[%emt 0:00:28]} 28. Qh5 {[%emt 0:00:45]} Qg7 {[%emt 0:00:26]} 29. gxh6 {[%emt 0:01:11]} Rxg1+ {[%emt 0:01:13]} 30. Ke2 {[%emt 0:01:12]} Qg5 {[%emt 0:01:26]} 31. Rxg1 {[%emt 0:02:07]} Qxg1 {[%emt 0:00:02]} 32. b4 {[%emt 0:00:25]} f3+ {[%emt 0:00:15]} 33. Qxf3 {[%emt 0:00:11]} Qg6 {[%emt 0:02:30]} 34. b5 {[%emt 0:01:01]} Nd4+ {[%emt 0:01:01]} 35. Bxd4 cxd4 36. b6 {[%emt 0:01:58]} a6 {[%emt 0:01:39]} 37. c5 {[%emt 0:00:58]} dxc5 {[%emt 0:00:38]} 38. Kf1 {[%emt 0:00:47]} Rf8 {[%emt 0:00:52]} 39. Qd1 {[%emt 0:00:25]} Qxh6 {[%emt 0:00:06]} 40. Qb3+ {[%emt 0:00:21]} Rf7 {[%emt 0:00:29]} 41. Qd1 {[%emt 0:00:48]} Qf4 {[%emt 0:00:19]} 42. Qc2 {[%emt 0:00:36]} Qf3 {[%emt 0:00:41]} 43. Qd2 {[%emt 0:00:54]} Qh1+ {[%emt 0:00:31]} 44. Ke2 {[%emt 0:00:11]} Qg1 {[%emt 0:00:03]} 0-1

[Event "Karnataka State Open-ch 2018"]
[Site "Bengaluru"]
[Date "2018.04.18"]
[Round "9"]
[White "Raghavendra, V.."]
[Black "Gavi, Siddayya"]
[Result "1/2-1/2"]
[ECO "C91"]
[WhiteElo "1898"]
[BlackElo "1993"]
[Annotator "NA RC"]
[PlyCount "121"]
[EventDate "2018.??.??"]
[EventType "swiss"]
[EventCountry "IND"]
[SourceTitle "playchess.com"]
[Source "ChessBase"]
[SourceQuality "1"]
[TimeControl "5400+30"]

1. e4 {[%emt 0:00:00]} e5 {[%emt 0:00:07]} 2. Nf3 {[%emt 0:00:00]} Nc6 {[%emt 0:00:05]} 3. Bb5 {[%emt 0:00:21]} a6 {[%emt 0:00:29]} 4. Ba4 {[%emt 0:00:03]} Nf6 {[%emt 0:00:14]} 5. O-O {[%emt 0:00:07]} Be7 {[%emt 0:00:07]} 6. Re1 {[%emt 0:00:26]} b5 {[%emt 0:00:11]} 7. Bb3 {[%emt 0:00:02]} d6 {[%emt 0:00:07]} 8. c3 {[%emt 0:00:06]} O-O {[%emt 0:00:11]} 9. d4 {[%emt 0:00:26]} Bg4 {[%emt 0:00:32]} 10. d5 {[%emt 0:00:08]} Na5 {[%emt 0:00:36]} 11. Bc2 {[%emt 0:00:04]} Qc8 {[%emt 0:00:43]} 12. h3 {[%emt 0:00:26]} Bd7 {[%emt 0:00:17]} 13. Nbd2 {[%emt 0:00:27]} c6 {[%emt 0:00:16]} 14. dxc6 {[%emt 0:00:12]} Qxc6 {[%emt 0:00:03]} 15. Nf1 {[%emt 0:01:03]} Nc4 {[%emt 0:00:53]} 16. Ng3 {[%emt 0:06:05] C91: Closed Ruy Lopez: 7...d6 8 c3 0-0 9 d4} g6 {[%emt 0:05:42]} (16... Rfe8 17. b3 Nb6 18. Be3 Rab8 19. Rc1 Qxc3 20. Bd3 Qa5 21. Bd2 Qa3 22. Rc2 Rec8 23. Bc1 Qa5 {½-½ (60) Gashimov,V (2740)-Svidler,P (2750) Nice 2010}) 17. Nh2 {[%emt 0:01:54]} Rfe8 {[%emt 0:02:10]} 18. Qf3 {[%emt 0:03:44]} Be6 {[%emt 0:06:28]} 19. b3 $146 {[%emt 0:07:09]} ({Predecessor:} 19. Ng4 Nxg4 20. hxg4 f6 21. Qe2 Rac8 22. a4 Ra8 23. Rd1 Red8 {½-½ (49) Bjornsson,S (2210)-Olsen,H (2270) Reykjavik 1998}) 19... Nb6 {[%emt 0:00:20]} 20. Bg5 {[%emt 0:03:53]} Nbd7 {[%emt 0:03:21]} 21. Rac1 {[%emt 0:10:34]} Rac8 {[%emt 0:08:21]} 22. Bd3 {[%emt 0:03:14]} d5 {[%emt 0:03:07]} 23. Qe2 {[%emt 0:24:19]} Nc5 {[%emt 0:08:35]} 24. Bb1 {[%emt 0:18:47]} Nh5 {[%emt 0:10:57]} 25. Bxe7 {[%emt 0:01:31]} Nf4 {[%emt 0:01:00]} 26. Qf3 {[%emt 0:00:29]} Rxe7 {[%emt 0:00:14]} 27. Ng4 {[%emt 0:01:40]} dxe4 {[%emt 0:06:03]} 28. Nxe4 {[%emt 0:02:45]} Bxg4 {[%emt 0:01:17]} 29. hxg4 {[%emt 0:00:37]} Nxe4 {[%emt 0:01:16]} 30. Bxe4 {[%emt 0:00:21]} Qf6 {[%emt 0:00:35]} 31. g3 {[%emt 0:07:44]} Nh3+ {[%emt 0:00:29]} 32. Kg2 {[%emt 0:00:02]} Qxf3+ {[%emt 0:00:15]} 33. Bxf3 {[%emt 0:00:03]} Ng5 {[%emt 0:00:08]} 34. Bd5 {[%emt 0:00:30]} Rc5 {[%emt 0:02:33]} 35. c4 {[%emt 0:00:23]} bxc4 {[%emt 0:00:32]} 36. Bxc4 {[%emt 0:00:02]} Rec7 {[%emt 0:00:58]} 37. Rcd1 {[%emt 0:00:11]} Kg7 {[%emt 0:01:54]} 38. Bxa6 {[%emt 0:02:37]} Rc2 {[%emt 0:04:24]} 39. Rxe5 {[%emt 0:01:27]} Rxa2 {[%emt 0:00:56]} 40. Rxg5 {[%emt 0:01:15]} Rxa6 {[%emt 0:00:06]} 41. Rgd5 {[%emt 0:01:51]} Rc3 {[%emt 0:01:06]} 42. R5d3 {[%emt 0:00:03]} Rc2 {[%emt 0:00:22]} 43. R1d2 {[%emt 0:00:02]} Rc1 {[%emt 0:00:13]} 44. Rb2 {[%emt 0:00:21]} Rb6 {[%emt 0:00:23]} 45. b4 {[%emt 0:00:06]} Rc4 {[%emt 0:00:23]} 46. b5 {[%emt 0:00:25]} Rxg4 {[%emt 0:01:09]} 47. Rd5 {[%emt 0:00:02]} Rc4 {[%emt 0:00:25]} 48. f4 {[%emt 0:02:01]} h5 {[%emt 0:00:55]} 49. Rb3 {[%emt 0:01:36]} h4 {[%emt 0:01:10]} 50. Kh3 {[%emt 0:00:21]} hxg3 {[%emt 0:00:12]} 51. Kxg3 {[%emt 0:00:02]} Kf6 {[%emt 0:00:56]} 52. Re5 {[%emt 0:00:12]} Kg7 {[%emt 0:03:40]} 53. Kf3 {[%emt 0:00:18]} Kf8 {[%emt 0:00:35]} 54. Ke3 {[%emt 0:02:06]} f6 {[%emt 0:00:49]} 55. Re4 {[%emt 0:00:47]} Rc5 {[%emt 0:00:07]} 56. Reb4 {[%emt 0:00:04]} Ke7 {[%emt 0:00:25]} 57. Kd4 {[%emt 0:00:07]} Kd6 {[%emt 0:00:25]} 58. Rb1 {[%emt 0:02:09]} Rf5 {[%emt 0:02:20]} 59. Ke4 {[%emt 0:00:26]} Kc5 $11 {[%emt 0:00:43]} 60. Kf3 {[%emt 0:00:45]} g5 {[%emt 0:02:36]} 61. Kg4 {[%emt 0:00:03]} 1/2-1/2

[Event "Karnataka State Open-ch 2018"]
[Site "Bengaluru"]
[Date "2018.04.18"]
[Round "9"]
[White "Hardik, Jha"]
[Black "Ajitesh Kumara"]
[Result "1-0"]
[ECO "A05"]
[WhiteElo "1882"]
[BlackElo "1431"]
[Annotator "NA RC"]
[PlyCount "63"]
[EventDate "2018.??.??"]
[EventType "swiss"]
[EventCountry "IND"]
[SourceTitle "playchess.com"]
[Source "ChessBase"]
[SourceQuality "1"]
[TimeControl "5400+30"]

1. Nf3 {[%emt 0:00:00]} Nf6 {[%emt 0:00:07]} 2. g3 {[%emt 0:00:00]} g6 {[%emt 0:00:10]} 3. Bg2 {[%emt 0:00:00]} Bg7 {[%emt 0:00:07]} 4. c4 {[%emt 0:00:00]} O-O {[%emt 0:00:31]} 5. Nc3 {[%emt 0:00:00]} d6 {[%emt 0:00:14]} 6. O-O {[%emt 0:00:12]} Nc6 {[%emt 0:01:39]} 7. d3 {[%emt 0:00:19]} e5 {[%emt 0:02:39]} 8. Bd2 {[%emt 0:01:41]} Ne8 {[%emt 0:09:42]} 9. Nd5 {[%emt 0:02:33]} f5 {[%emt 0:04:29]} 10. Bc3 {[%emt 0:03:40]} Ne7 {[%emt 0:05:42]} 11. Nd2 {[%emt 0:14:25]} c6 {[%emt 0:10:36]} 12. Nxe7+ {[%emt 0:03:53]} Qxe7 {[%emt 0:02:59]} 13. e3 {[%emt 0:04:00]} Nf6 {[%emt 0:09:46]} 14. Qc2 {[%emt 0:03:12]} Be6 {[%emt 0:01:44]} 15. Rae1 {[%emt 0:01:16]} Rac8 {[%emt 0:07:43]} 16. f4 {[%emt 0:01:47]} Nd7 {[%emt 0:01:58]} 17. Nf3 {[%emt 0:05:12]} h6 {[%emt 0:02:04]} 18. b3 {[%emt 0:01:14]} Bf7 {[%emt 0:01:19]} 19. e4 {[%emt 0:04:05]} exf4 {[%emt 0:05:46]} 20. exf5 {[%emt 0:02:18]} Qd8 {[%emt 0:01:12]} 21. fxg6 {[%emt 0:01:49]} Bxg6 {[%emt 0:00:14]} 22. Bxg7 {[%emt 0:00:56]} Kxg7 {[%emt 0:00:14]} 23. Qc3+ {[%emt 0:00:47]} Kh7 {[%emt 0:02:05]} 24. Nh4 {[%emt 0:00:36]} Ne5 {[%emt 0:05:09]} 25. d4 {[%emt 0:04:08]} Nd3 {[%emt 0:14:22]} 26. Nxg6 {[%emt 0:00:54]} Nxe1 {[%emt 0:00:54]} 27. Nxf8+ {[%emt 0:00:02]} Qxf8 {[%emt 0:00:38]} 28. Qxe1 {[%emt 0:01:24]} Re8 {[%emt 0:00:42]} 29. Qd2 {[%emt 0:01:40]} Qe7 30. Qxf4 {[%emt 0:00:04]} Qe3+ {[%emt 0:01:55]} 31. Qxe3 {[%emt 0:00:29]} Rxe3 32. Rf7+ 1-0

[Event "Karnataka State Open-ch 2018"]
[Site "Bengaluru"]
[Date "2018.04.18"]
[Round "9"]
[White "Rakshith Srinivasan"]
[Black "Likhit, Chilukuri"]
[Result "1-0"]
[ECO "B07"]
[WhiteElo "1597"]
[BlackElo "1988"]
[Annotator "NA RC"]
[PlyCount "57"]
[EventDate "2018.??.??"]
[EventType "swiss"]
[EventCountry "IND"]
[SourceTitle "playchess.com"]
[Source "ChessBase"]
[SourceQuality "1"]
[TimeControl "5400+30"]

1. e4 {[%emt 0:00:00]} d6 {[%emt 0:00:10]} 2. d4 {[%emt 0:00:00]} Nf6 {[%emt 0:00:06]} 3. Nc3 {[%emt 0:00:00]} Nbd7 {[%emt 0:00:05]} 4. Nf3 {[%emt 0:00:20]} e5 {[%emt 0:00:08]} 5. Bc4 {[%emt 0:00:52]} Be7 {[%emt 0:00:06]} 6. O-O {[%emt 0:00:07]} c6 {[%emt 0:00:03]} 7. a4 {[%emt 0:00:07]} Qc7 {[%emt 0:00:28]} 8. h3 {[%emt 0:01:32]} h6 {[%emt 0:00:06]} 9. Be3 {[%emt 0:00:20]} Nf8 {[%emt 0:00:59]} 10. Qd2 {[%emt 0:02:50]} g5 {[%emt 0:02:38]} 11. dxe5 {[%emt 0:06:32]} dxe5 {[%emt 0:00:06]} 12. Rab1 {[%emt 0:11:35]} a5 {[%emt 0:06:47]} 13. Qd3 {[%emt 0:11:35]} Ng6 {[%emt 0:01:54]} 14. Ne2 {[%emt 0:05:17]} Rg8 {[%emt 0:15:53]} 15. Qb3 {[%emt 0:04:04]} Rg7 {[%emt 0:01:02]} 16. Bb6 {[%emt 0:02:05]} Qb8 {[%emt 0:00:05]} 17. Ng3 {[%emt 0:01:29]} g4 {[%emt 0:00:23]} 18. hxg4 {[%emt 0:03:16]} Bxg4 {[%emt 0:00:26]} 19. Rbd1 {[%emt 0:05:29]} h5 {[%emt 0:10:00]} 20. Ng5 {[%emt 0:14:37]} Nh8 {[%emt 0:00:08]} 21. Nf3 {[%emt 0:02:16]} Nd7 {[%emt 0:11:08]} 22. Rd3 {[%emt 0:04:20]} h4 {[%emt 0:02:14]} 23. Ne2 {[%emt 0:00:43]} Qc8 {[%emt 0:06:26]} 24. Kh1 {[%emt 0:04:10]} Nxb6 {[%emt 0:15:47]} 25. Qxb6 {[%emt 0:00:03]} Bxf3 {[%emt 0:00:07]} 26. Rxf3 {[%emt 0:00:06]} Rxg2 {[%emt 0:00:08]} 27. Kxg2 {[%emt 0:02:47]} Qg4+ {[%emt 0:00:07]} 28. Kh2 {[%emt 0:00:02]} Qxf3 {[%emt 0:04:12]} 29. Qxb7 {[%emt 0:00:33]} 1-0